﻿Department Family,Entity,Date of Payment,GL Description,Expense Area,Supplier,Voluntary,SME Class,Sole Trader,Transaction number,Purchasing Item Text,Postal Code,Amount in Sterling,Grant?
MHCLG,PINS,02/01/2020,NSI Fees & Expenses,NSI Fees Planning,LOCK ENVIRONMENTAL LTD,,Data Not Provided,,5106255101,NSI Fees,GL55 6QF,"1,625.00",
MHCLG,PINS,02/01/2020,NSI Fees & Expenses,NSI Expenses Planning,LOCK ENVIRONMENTAL LTD,,Data Not Provided,,5106255101,NSI Expenses,GL55 6QF,75.15,
MHCLG,PINS,02/01/2020,NSI Fees & Expenses,NSI Fees Planning,LOCK ENVIRONMENTAL LTD,,Data Not Provided,,5106255102,NSI Fees,GL55 6QF,"1,700.00",
MHCLG,PINS,02/01/2020,NSI Fees & Expenses,NSI Expenses Planning,LOCK ENVIRONMENTAL LTD,,Data Not Provided,,5106255102,NSI Expenses,GL55 6QF,100.80,
MHCLG,PINS,02/01/2020,Specialist Technical Support,ICT Digital Services,HAYS SPECIALIST RECRUITMENT LTD,,Large,,5106255100,Security Manager Backfill,NW1 2AF,"2,940.78",
MHCLG,PINS,02/01/2020,Specialist Technical Support,TR Organisational Agility,HAYS SPECIALIST RECRUITMENT LTD,,Large,,5106255098,OD Implementation Project Lead,NW1 2AF,"2,457.79",
MHCLG,PINS,03/01/2020,Agency Staff,Human Resources,HAYS SPECIALIST RECRUITMENT LTD,,Large,,5106255105,HR ADMIN AO - LR,NW1 2AF,221.70,
MHCLG,PINS,03/01/2020,Agency Staff,Transformation Prog Management Office,HAYS SPECIALIST RECRUITMENT LTD,,Large,,5106255099,Change Portfolio Comms Lead,NW1 2AF,"1,252.80",
MHCLG,PINS,03/01/2020,EXP – PURCHASE OF GOODS /SERVICES R & D,Research and Development,HAYS SPECIALIST RECRUITMENT LTD,,Large,,5106255103,Test Analyst ODT,NW1 2AF,291.42,
MHCLG,PINS,03/01/2020,Specialist Technical Support,Research and Development,HAYS SPECIALIST RECRUITMENT LTD,,Large,,5106255110,ODT Content designer,NW1 2AF,"2,485.08",
MHCLG,PINS,03/01/2020,Specialist Technical Support,Research and Development,HAYS SPECIALIST RECRUITMENT LTD,,Large,,5106255111,Test Analyst ODT,NW1 2AF,"1,508.90",
MHCLG,PINS,03/01/2020,Specialist Technical Support,Research and Development,HAYS SPECIALIST RECRUITMENT LTD,,Large,,5106255112,ODT Scrum Master,NW1 2AF,"1,418.33",
MHCLG,PINS,03/01/2020,Specialist Technical Support,ICT Digital Services,HAYS SPECIALIST RECRUITMENT LTD,,Large,,5106255116,BA with O365 exp ,NW1 2AF,"3,497.28",
MHCLG,PINS,03/01/2020,Specialist Technical Support,ICT Digital Services,HAYS SPECIALIST RECRUITMENT LTD,,Large,,5106255117,BA with O365 exp,NW1 2AF,"3,497.28",
MHCLG,PINS,03/01/2020,Specialist Technical Support,Research and Development,HAYS SPECIALIST RECRUITMENT LTD,,Large,,5106255104,Test Analyst - JA,NW1 2AF,"2,712.90",
MHCLG,PINS,03/01/2020,Specialist Technical Support,ICT Digital Services,REED SPECIALIST RECRUITMENT LTD,,Large,,5106255071,Contract  EM,SW20 0BA,"1,012.06",
MHCLG,PINS,06/01/2020,Courier Services,Estates,ROYAL MAIL,,Large,,2100079590,Postal services VAT 19/20,S49 1HQ,"-1,361.44",
MHCLG,PINS,06/01/2020,Courier Services,Estates,ROYAL MAIL,,Large,,5106255224,Postal services VAT 19/20,S49 1HQ,"1,361.44",
MHCLG,PINS,06/01/2020,IT - Service Contracts,ICT Digital Services,ZSAH LTD,,Small,,5106255169,Fully managed  Dev  environment -,SW7 3HE,"2,259.48",
MHCLG,PINS,06/01/2020,NSI Fees & Expenses,NSI Expenses Planning,NIK SMITH TOWN PLANNING LTD,,Small,,5106255183,EXPS - NON VAT,SE24 0PA,18.15,
MHCLG,PINS,06/01/2020,NSI Fees & Expenses,NSI Expenses Planning,NIK SMITH TOWN PLANNING LTD,,Small,,5106255183,FEES - NON VAT,SE24 0PA,"1,700.00",
MHCLG,PINS,06/01/2020,NSI Fees & Expenses,NSI Expenses Planning,NIK SMITH TOWN PLANNING LTD,,Small,,5106255184,EXPS - NON VAT,SE24 0PA,18.15,
MHCLG,PINS,06/01/2020,NSI Fees & Expenses,NSI Expenses Planning,NIK SMITH TOWN PLANNING LTD,,Small,,5106255184,FEES - NON VAT,SE24 0PA,"1,700.00",
MHCLG,PINS,06/01/2020,Specialist Technical Support,ICT Digital Services,HAYS SPECIALIST RECRUITMENT LTD,,Large,,5106255179,Security Manager Backfill,NW1 2AF,882.24,
MHCLG,PINS,07/01/2020,Agency Staff,Human Resources,HAYS SPECIALIST RECRUITMENT LTD,,Large,,5106255210,Admin OD/HR Support - HH,NW1 2AF,717.80,
MHCLG,PINS,07/01/2020,Agency Staff,"Policy, Knowledge & Quality",REED SPECIALIST RECRUITMENT LTD,,Large,,5106255198,Agency Staff for Library 19-20,SW20 0BA,351.40,
MHCLG,PINS,07/01/2020,Agency Staff,Professional Leads,REED SPECIALIST RECRUITMENT LTD,,Large,,5106255232,PA Resource,SW20 0BA,413.48,
MHCLG,PINS,07/01/2020,NSI Fees & Expenses,Research and Development,METHODS BUSINESS AND DIGITAL TECH,,Medium,,5106255200,ODT User Researcher,EC1N 8TS,"2,280.00",
MHCLG,PINS,07/01/2020,Specialist Technical Support,Research and Development,CAPITA RESOURCING LTD,,Large,,5106255239,ODT Test Analyst,SL6 1DP,"6,183.53",
MHCLG,PINS,07/01/2020,Specialist Technical Support,Corporate Services Director,HAYS SPECIALIST RECRUITMENT LTD,,Large,,5106255195,GDPR Trainer,NW1 2AF,"1,416.00",
MHCLG,PINS,07/01/2020,Specialist Technical Support,Research and Development,HAYS SPECIALIST RECRUITMENT LTD,,Large,,5106255202,ODT Business Analyst - SH,NW1 2AF,"1,252.80",
MHCLG,PINS,07/01/2020,Vehicle hire,Inspector Costs,ENTERPRISE RENT-A-CAR,,Large,,5106255240,Car Hire 19/20,TW20 9FB,"15,697.76",
MHCLG,PINS,08/01/2020,Advertising,ROW,TMP (UK) LIMITED,,Large,,5106255275,Statutory Advertising - ROW,W1T 7RQ,383.92,
MHCLG,PINS,08/01/2020,Advertising,ROW,TMP (UK) LIMITED,,Large,,5106255276,Statutory Advertising - ROW,W1T 7RQ,470.89,
MHCLG,PINS,08/01/2020,Agency Staff,Transformation Prog Management Office,REED SPECIALIST RECRUITMENT LTD,,Large,,5106255238,Finance Business Partner,SW20 0BA,468.43,
MHCLG,PINS,08/01/2020,Courier Services,Wales Director,ROYAL MAIL,,Large,,5106255242,Postal Services,S49 1HQ,277.70,
MHCLG,PINS,08/01/2020,Courier Services,Estates,ROYAL MAIL,,Large,,5106255270,Postal services VAT 19/20,S49 1HQ,"1,359.94",
MHCLG,PINS,08/01/2020,Courier Services,Estates,ROYAL MAIL,,Large,,5106255270,Postal services VAT zero 19/20,S49 1HQ,1.25,
MHCLG,PINS,08/01/2020,EXP – PURCHASE OF GOODS /SERVICES R & D,Research and Development,METHODS BUSINESS AND DIGITAL TECH,,Medium,,5106255201,Digital Delivery Manager,EC1N 8TS,"10,100.25",
MHCLG,PINS,08/01/2020,Specialist Technical Support,TR Organisational Agility,HAYS SPECIALIST RECRUITMENT LTD,,Large,,5106255167,OD Implementation Project Lead,NW1 2AF,"1,228.90",
MHCLG,PINS,08/01/2020,Specialist Technical Support,Research and Development,METHODS BUSINESS AND DIGITAL TECH,,Medium,,5106255249,ODT Project Manager PM2 - AM,EC1N 8TS,"3,322.80",
MHCLG,PINS,08/01/2020,Specialist Technical Support,Research and Development,METHODS BUSINESS AND DIGITAL TECH,,Medium,,5106255254,ODT Project Manager - BS,EC1N 8TS,"10,350.00",
MHCLG,PINS,09/01/2020,Agency Staff,Transformation Prog Management Office,HAYS SPECIALIST RECRUITMENT LTD,,Large,,5106255263,Change Portfolio Comms Lead,NW1 2AF,"1,670.40",
MHCLG,PINS,09/01/2020,NSI Fees & Expenses,NSI Fees Planning,ANDREW DALE,,Data Not Provided,,5106255301,NSI Fees,DE23 8DP,"1,800.00",
MHCLG,PINS,09/01/2020,NSI Fees & Expenses,NSI Expenses Planning,ANDREW DALE,,Data Not Provided,,5106255301,NSI Expenses,DE23 8DP,182.60,
MHCLG,PINS,09/01/2020,NSI Fees & Expenses,NSI Fees Planning,DESIGN 2,,Micro,,5106255335,NSI Fees,PO20 0HX,"1,596.00",
MHCLG,PINS,09/01/2020,NSI Fees & Expenses,NSI Fees Planning,JS CONSERVATION MANAGEMENT &,,Small,,5106255341,NSI Fees,LS27 0BD,"2,730.00",
MHCLG,PINS,09/01/2020,NSI Fees & Expenses,NSI Expenses Planning,JS CONSERVATION MANAGEMENT &,,Small,,5106255341,NSI Expenses,LS27 0BD,275.20,
MHCLG,PINS,09/01/2020,NSI Fees & Expenses,NSI Expenses Planning,NIK SMITH TOWN PLANNING LTD,,Small,,5106255330,EXPS - NON VAT,SE24 0PA,18.10,
MHCLG,PINS,09/01/2020,NSI Fees & Expenses,NSI Expenses Planning,NIK SMITH TOWN PLANNING LTD,,Small,,5106255330,FEES - NON VAT,SE24 0PA,"1,875.00",
MHCLG,PINS,09/01/2020,NSI Fees & Expenses,NSI Expenses Planning,NIK SMITH TOWN PLANNING LTD,,Small,,5106255334,EXPS - NON VAT,SE24 0PA,42.75,
MHCLG,PINS,09/01/2020,NSI Fees & Expenses,NSI Expenses Planning,NIK SMITH TOWN PLANNING LTD,,Small,,5106255334,FEES - NON VAT,SE24 0PA,"1,700.00",
MHCLG,PINS,09/01/2020,NSI Fees & Expenses,NSI Fees Planning,S P PLANNING,,Small,,5106255329,NSI Fees,EC1M 5QA,"1,560.00",
MHCLG,PINS,09/01/2020,NSI Fees & Expenses,NSI Expenses Planning,S P PLANNING,,Small,,5106255329,NSI Expenses,EC1M 5QA,8.64,
MHCLG,PINS,09/01/2020,NSI Fees & Expenses,NSI Fees Planning,SANDRA PRAIL LTD,,Micro,,5106255328,NSI Fees,BN16 1RX,"1,830.00",
MHCLG,PINS,09/01/2020,NSI Fees & Expenses,NSI Expenses Planning,SANDRA PRAIL LTD,,Micro,,5106255328,NSI Expenses,BN16 1RX,128.64,
MHCLG,PINS,09/01/2020,Office Supplies,Business Support,BANNER BUSINESS SUPPLIES LTD,,Large,,5106255337,office stationery 19/20,S9 1XU,449.78,
MHCLG,PINS,09/01/2020,Payroll Services,Human Resources,CGI IT UK LIMITED,,Large,,5106255321,Payroll Services 2019/20,CF31 9AP,"4,483.67",
MHCLG,PINS,09/01/2020,Payroll Services,Human Resources,CGI IT UK LIMITED,,Large,,5106255323,Payroll Services 2019/20,CF31 9AP,"3,216.03",
MHCLG,PINS,09/01/2020,Specialist Technical Support,ICT Digital Services,HAYS SPECIALIST RECRUITMENT LTD,,Large,,5106255297,Delivery Manager,NW1 2AF,932.10,
MHCLG,PINS,09/01/2020,Specialist Technical Support,Research and Development,HAYS SPECIALIST RECRUITMENT LTD,,Large,,5106255204,ODT Test Analyst - VV,NW1 2AF,"1,085.16",
MHCLG,PINS,09/01/2020,Specialist Technical Support,Corporate Services Director,HAYS SPECIALIST RECRUITMENT LTD,,Large,,5106255295,Data Protection Liaison Officer,NW1 2AF,716.10,
MHCLG,PINS,09/01/2020,Specialist Technical Support,ICT Digital Services,MEDLEY BUSINESS SOLUTIONS LIMITED,,Medium,,5106255251,Digital Architect,GU4 8PR,"16,156.80",
MHCLG,PINS,09/01/2020,Specialist Technical Support,Corporate Services Director,METHODS BUSINESS AND DIGITAL TECH,,Medium,,5106255294,Contract extension ,EC1N 8TS,"13,576.50",
MHCLG,PINS,09/01/2020,Specialist Technical Support,ICT Digital Services,REED SPECIALIST RECRUITMENT LTD,,Large,,5106255192,Contract ext  EM,SW20 0BA,607.24,
MHCLG,PINS,10/01/2020,Agency Staff,Human Resources,HAYS SPECIALIST RECRUITMENT LTD,,Large,,5106255359,Admin OD/HR Support - HH,NW1 2AF,957.07,
MHCLG,PINS,10/01/2020,Agency Staff,Human Resources,HAYS SPECIALIST RECRUITMENT LTD,,Large,,5106255435,HR ADMIN AO - LR,NW1 2AF,443.40,
MHCLG,PINS,10/01/2020,IT at cost,ICT Digital Services,X M A LIMITED,,Data Not Provided,,5106255437,Order ref. SWPINS28119a,NG11 7EP,514.99,
MHCLG,PINS,10/01/2020,IT Maintenance,ICT Digital Services,X M A LIMITED,,Data Not Provided,,5106255436,Laptop extended,NG11 7EP,320.58,
MHCLG,PINS,10/01/2020,IT Maintenance,ICT Digital Services,X M A LIMITED,,Data Not Provided,,5106255436,Pro Book extended,NG11 7EP,213.72,
MHCLG,PINS,10/01/2020,Mobile phone costs,ICT Digital Services,GAMMA TELECOM LTD,,Large,,5106255406,Mobile telephony services 2019-20,EC4M 7RD,"2,112.11",
MHCLG,PINS,10/01/2020,Specialist Technical Support,Research and Development,HAYS SPECIALIST RECRUITMENT LTD,,Large,,5106255347,ODT Interactive Designer,NW1 2AF,"2,737.49",
MHCLG,PINS,10/01/2020,Specialist Technical Support,Corporate Services Director,HAYS SPECIALIST RECRUITMENT LTD,,Large,,5106255348,GDPR Trainer,NW1 2AF,849.60,
MHCLG,PINS,10/01/2020,Specialist Technical Support,Research and Development,HAYS SPECIALIST RECRUITMENT LTD,,Large,,5106255353,ODT Business Analyst - JB,NW1 2AF,"1,252.08",
MHCLG,PINS,10/01/2020,Specialist Technical Support,Research and Development,HAYS SPECIALIST RECRUITMENT LTD,,Large,,5106255354,ODT Business Analyst - JB,NW1 2AF,313.02,
MHCLG,PINS,10/01/2020,Specialist Technical Support,Research and Development,HAYS SPECIALIST RECRUITMENT LTD,,Large,,5106255355,ODT PMO Lead,NW1 2AF,902.69,
MHCLG,PINS,10/01/2020,Specialist Technical Support,Research and Development,HAYS SPECIALIST RECRUITMENT LTD,,Large,,5106255357,ODT Business Analyst - SH,NW1 2AF,"1,252.80",
MHCLG,PINS,10/01/2020,Specialist Technical Support,Research and Development,HAYS SPECIALIST RECRUITMENT LTD,,Large,,5106255358,ODT Scrum Master,NW1 2AF,"1,418.33",
MHCLG,PINS,10/01/2020,Specialist Technical Support,Research and Development,HAYS SPECIALIST RECRUITMENT LTD,,Large,,5106255385,Test Analyst ODT,NW1 2AF,"1,005.94",
MHCLG,PINS,10/01/2020,Specialist Technical Support,Research and Development,HAYS SPECIALIST RECRUITMENT LTD,,Large,,5106255349,ODT Test Analyst - VV,NW1 2AF,"1,085.16",
MHCLG,PINS,10/01/2020,Specialist Technical Support,Research and Development,HAYS SPECIALIST RECRUITMENT LTD,,Large,,5106255361,Test Analyst - JA,NW1 2AF,"1,085.16",
MHCLG,PINS,10/01/2020,Specialist Technical Support,Corporate Services Director,HAYS SPECIALIST RECRUITMENT LTD,,Large,,5106255364,Data Protection Liason Officer Extension,NW1 2AF,"1,432.20",
MHCLG,PINS,10/01/2020,Specialist Technical Support,Corporate Services Director,METHODS BUSINESS AND DIGITAL TECH,,Medium,,5106255248,Corporate Systems Del Mger PH,EC1N 8TS,"14,009.70",
MHCLG,PINS,10/01/2020,Specialist Technical Support,ICT Digital Services,METHODS BUSINESS AND DIGITAL TECH,,Medium,,5106255303,Sharepoint & Teams Specialist,EC1N 8TS,"9,120.00",
MHCLG,PINS,10/01/2020,Specialist Technical Support,Research and Development,METHODS BUSINESS AND DIGITAL TECH,,Medium,,5106255314,ODT Test Analyst - SB,EC1N 8TS,"7,068.60",
MHCLG,PINS,10/01/2020,Training,ICT Digital Services,KNOWLEDGE ACADEMY LTD,,Data Not Provided,,5106255430,MoP foundation & practioner in Bristol 2,SR4 4RU,"1,495.00",
MHCLG,PINS,13/01/2020,EXP – PURCHASE OF GOODS /SERVICES R & D,Research and Development,@ITS(SEARCH&SELECTION)LTD,,Small,,5106255255,ODT Benefits Analyst Ext 2020,EC2V 6DL,"9,280.00",
MHCLG,PINS,13/01/2020,NSI Fees & Expenses,NSI Fees Planning,MARTIN ANDREWS PLANNING CONSULTANCY,,Micro,,5106255352,NSI Fees,BH15 1HH,"2,130.00",
MHCLG,PINS,13/01/2020,NSI Fees & Expenses,NSI Expenses Planning,MARTIN ANDREWS PLANNING CONSULTANCY,,Micro,,5106255352,NSI Expenses,BH15 1HH,236.70,
MHCLG,PINS,13/01/2020,NSI Fees & Expenses,NSI Fees Planning,MR D HAINSWORTH,,Data Not Provided,,5106255539,NSI Fees,S60 3EE,"2,310.00",
MHCLG,PINS,13/01/2020,NSI Fees & Expenses,NSI Expenses Planning,MR D HAINSWORTH,,Data Not Provided,,5106255539,NSI Expenses,S60 3EE,156.18,
MHCLG,PINS,13/01/2020,NSI Fees & Expenses,NSI Fees Planning,URBANGLOW DESIGN & HERITAGE LTD,,Micro,,5106255548,NSI Fees,LS3 1JY,960.00,
MHCLG,PINS,13/01/2020,NSI Fees & Expenses,NSI Expenses Planning,URBANGLOW DESIGN & HERITAGE LTD,,Micro,,5106255548,NSI Expenses,LS3 1JY,298.60,
MHCLG,PINS,13/01/2020,Specialist Technical Support,ICT Digital Services,HAYS SPECIALIST RECRUITMENT LTD,,Large,,5106255455,Security Manager Backfill,NW1 2AF,"2,058.55",
MHCLG,PINS,13/01/2020,Specialist Technical Support,"Finance, Commercial & Business Support",HAYS SPECIALIST RECRUITMENT LTD,,Large,,5106255550,Commercial Manager NG,NW1 2AF,"1,465.99",
MHCLG,PINS,13/01/2020,Specialist Technical Support,Research and Development,METHODS BUSINESS AND DIGITAL TECH,,Medium,,5106255351,Test Manager and Automation ODT,EC1N 8TS,"11,730.00",
MHCLG,PINS,13/01/2020,Specialist Technical Support,Research and Development,OFSTED,,Data Not Provided,,2100079862,Business Change and PMO,M1 2WD,"-5,283.40",
MHCLG,PINS,13/01/2020,Specialist Technical Support,Research and Development,OFSTED,,Data Not Provided,,5106255315,Business Change and PMO,M1 2WD,"5,283.40",
MHCLG,PINS,14/01/2020,Agency Staff,Governance & Strategic Support,REED SPECIALIST RECRUITMENT LTD,,Large,,5106255560,AO PA Resource KL,SW20 0BA,261.12,
MHCLG,PINS,14/01/2020,Agency Staff,Inspector Development & Support Team,REED SPECIALIST RECRUITMENT LTD,,Large,,5106255584,Temp staff for IDST-SC,SW20 0BA,457.97,
MHCLG,PINS,14/01/2020,Agency Staff,Governance & Strategic Support,REED SPECIALIST RECRUITMENT LTD,,Large,,5106255588,AO PA Resource KL,SW20 0BA,304.57,
MHCLG,PINS,14/01/2020,Agency Staff,Professional Leads,REED SPECIALIST RECRUITMENT LTD,,Large,,5106255591,PA Resource,SW20 0BA,456.58,
MHCLG,PINS,14/01/2020,Agency Staff,Inspector Development & Support Team,REED SPECIALIST RECRUITMENT LTD,,Large,,5106255592,AO IDST (HD),SW20 0BA,278.82,
MHCLG,PINS,14/01/2020,Agency Staff,"Policy, Knowledge & Quality",REED SPECIALIST RECRUITMENT LTD,,Large,,5106255601,Agency Staff for Library 19-20,SW20 0BA,433.12,
MHCLG,PINS,14/01/2020,EXP – PURCHASE OF GOODS /SERVICES R & D,Research and Development,REED SPECIALIST RECRUITMENT LTD,,Large,,5106255599,EO ODT Project Support,SW20 0BA,728.28,
MHCLG,PINS,14/01/2020,NSI Fees & Expenses,NSI Fees Planning,MARTIN ANDREWS PLANNING CONSULTANCY,,Micro,,5106255598,NSI Fees,BH15 1HH,"1,290.00",
MHCLG,PINS,14/01/2020,NSI Fees & Expenses,NSI Expenses Planning,MARTIN ANDREWS PLANNING CONSULTANCY,,Micro,,5106255598,NSI Expenses,BH15 1HH,244.20,
MHCLG,PINS,14/01/2020,NSI Fees & Expenses,NSI Fees Planning,MARTIN ANDREWS PLANNING CONSULTANCY,,Micro,,5106255600,NSI Fees,BH15 1HH,"1,140.00",
MHCLG,PINS,14/01/2020,Specialist Technical Support,Research and Development,HAYS SPECIALIST RECRUITMENT LTD,,Large,,5106255581,ODT Content designer,NW1 2AF,497.02,
MHCLG,PINS,14/01/2020,Specialist Technical Support,Performance Recovery,HAYS SPECIALIST RECRUITMENT LTD,,Large,,5106255363,BI Developer Ext,NW1 2AF,"2,264.26",
MHCLG,PINS,14/01/2020,Specialist Technical Support,Performance Recovery,METHODS BUSINESS AND DIGITAL TECH,,Medium,,5106255302,Inquiry Review PM ,EC1N 8TS,"13,226.35",
MHCLG,PINS,14/01/2020,Specialist Technical Support,Performance Recovery,METHODS BUSINESS AND DIGITAL TECH,,Medium,,5106255304,PM for performance Recovery,EC1N 8TS,"20,960.40",
MHCLG,PINS,14/01/2020,Specialist Technical Support,Performance Recovery,METHODS BUSINESS AND DIGITAL TECH,,Medium,,5106255346,Power BI Developer,EC1N 8TS,"13,160.40",
MHCLG,PINS,14/01/2020,Specialist Technical Support,Performance Recovery,METHODS BUSINESS AND DIGITAL TECH,,Medium,,5106255454,Extension,EC1N 8TS,"16,160.40",
MHCLG,PINS,14/01/2020,Specialist Technical Support,ICT Digital Services,REED SPECIALIST RECRUITMENT LTD,,Large,,5106255579,Contract ext EM,SW20 0BA,809.64,
MHCLG,PINS,14/01/2020,Specialist Technical Support,Research and Development,REED SPECIALIST RECRUITMENT LTD,,Large,,5106255583,ODT Project Support-SY,SW20 0BA,345.60,
MHCLG,PINS,14/01/2020,Training,"Finance, Commercial & Business Support",Tom Dalgarno,,Micro,,2100079895,Video production services,BS5 7DG,"-1,075.00",
MHCLG,PINS,14/01/2020,Training,"Finance, Commercial & Business Support",Tom Dalgarno,,Micro,,5106255619,Video production services,BS5 7DG,"1,075.00",
MHCLG,PINS,15/01/2020,Agency Staff,Transformation Prog Management Office,HAYS SPECIALIST RECRUITMENT LTD,,Large,,5106255618,Change Portfolio Comms Lead,NW1 2AF,"2,088.00",
MHCLG,PINS,15/01/2020,Specialist Technical Support,Research and Development,OFSTED,,Data Not Provided,,5106255616,Business Change and PMO,M1 2WD,"6,340.08",
MHCLG,PINS,15/01/2020,Training,"Finance, Commercial & Business Support",Tom Dalgarno,,Micro,,2100079951,Video production services,BS5 7DG,"-1,075.00",
MHCLG,PINS,15/01/2020,Training,"Finance, Commercial & Business Support",Tom Dalgarno,,Micro,,5106254916,Video production services,BS5 7DG,"1,075.00",
MHCLG,PINS,15/01/2020,Travel and Subsistence Account,Inspector Costs,CORPORATE TRAVEL MANAGEMENT(NORTH)L,,Small,,5106255640,Air Tickets,BD1 5HQ,"1,114.55",
MHCLG,PINS,15/01/2020,Travel and Subsistence Account,Inspector Costs,CORPORATE TRAVEL MANAGEMENT(NORTH)L,,Small,,5106255640,Billback Fee,BD1 5HQ,3.50,
MHCLG,PINS,15/01/2020,Travel and Subsistence Account,Inspector Costs,CORPORATE TRAVEL MANAGEMENT(NORTH)L,,Small,,5106255640,Hotel,BD1 5HQ,"61,379.22",
MHCLG,PINS,15/01/2020,Travel and Subsistence Account,Inspector Costs,CORPORATE TRAVEL MANAGEMENT(NORTH)L,,Small,,5106255640,Hotel,BD1 5HQ,72.90,
MHCLG,PINS,15/01/2020,Travel and Subsistence Account,Inspector Costs,CORPORATE TRAVEL MANAGEMENT(NORTH)L,,Small,,5106255640,Hotel Fees,BD1 5HQ,443.46,
MHCLG,PINS,15/01/2020,Travel and Subsistence Account,Inspector Costs,CORPORATE TRAVEL MANAGEMENT(NORTH)L,,Small,,5106255640,Rail,BD1 5HQ,"29,208.40",
MHCLG,PINS,15/01/2020,Travel and Subsistence Account,Inspector Costs,CORPORATE TRAVEL MANAGEMENT(NORTH)L,,Small,,5106255640,Web Transaction,BD1 5HQ,111.46,
MHCLG,PINS,16/01/2020,Office machinery consumables,Business Support,X M A LIMITED,,Data Not Provided,,5106255654,Office machine consumables 19/20,NG11 7EP,"1,852.30",
MHCLG,PINS,16/01/2020,Physical Storage,Business Support,RESTORE PLC,,Large,,5106255571,offsite storage 19/20,RH1 5DY,"1,188.46",
MHCLG,PINS,16/01/2020,Training,"Finance, Commercial & Business Support",Tom Dalgarno,,Micro,,5106255644,Video production services,BS5 7DG,687.50,
MHCLG,PINS,16/01/2020,Training,"Finance, Commercial & Business Support",Tom Dalgarno,,Micro,,5106255658,Video production services,BS5 7DG,"1,075.00",
MHCLG,PINS,17/01/2020,Advertising,ROW,TMP (UK) LIMITED,,Large,,5106255704,Statutory Advertising - ROW,W1T 7RQ,625.00,
MHCLG,PINS,17/01/2020,Agency Staff,Human Resources,HAYS SPECIALIST RECRUITMENT LTD,,Large,,5106255698,Admin OD/HR Support - LJ,NW1 2AF,"1,196.34",
MHCLG,PINS,17/01/2020,Agency Staff,Human Resources,HAYS SPECIALIST RECRUITMENT LTD,,Large,,5106255700,HR ADMIN AO - LR,NW1 2AF,546.86,
MHCLG,PINS,17/01/2020,Legal Fees,"Policy, Knowledge & Quality",GOVERNMENT LEGAL DEPT,,Public Bodies,,5106255749,Fees and Charges,WC2B 4TS,"99,568.98",
MHCLG,PINS,17/01/2020,NSI Fees & Expenses,NSI Fees Planning,JS CONSERVATION MANAGEMENT &,,Small,,5106255769,NSI Fees,LS27 0BD,"2,640.00",
MHCLG,PINS,17/01/2020,NSI Fees & Expenses,NSI Expenses Planning,JS CONSERVATION MANAGEMENT &,,Small,,5106255769,NSI Expenses,LS27 0BD,270.65,
MHCLG,PINS,17/01/2020,NSI Fees & Expenses,NSI Fees Planning,KIM BENNETT PLANNING SERVICES,,Micro,,5106255768,NSI Fees,CT2 7ET,525.00,
MHCLG,PINS,17/01/2020,NSI Fees & Expenses,NSI Expenses Planning,KIM BENNETT PLANNING SERVICES,,Micro,,5106255768,NSI Expenses,CT2 7ET,80.25,
MHCLG,PINS,17/01/2020,Office machinery consumables,Business Support,X M A LIMITED,,Data Not Provided,,5106255697,Office machine consumables 19/20,NG11 7EP,"2,024.98",
MHCLG,PINS,17/01/2020,Office machinery consumables,Business Support,X M A LIMITED,,Data Not Provided,,5106255776,Office machine consumables 19/20,NG11 7EP,515.74,
MHCLG,PINS,17/01/2020,Publications,"Policy, Knowledge & Quality",HAYMARKET MEDIA GROUP LIMITED,,Data Not Provided,,5106255655,Planning Resource Magazine,TW1 3SP,"19,845.00",
MHCLG,PINS,17/01/2020,Specialist Technical Support,Research and Development,HAYS SPECIALIST RECRUITMENT LTD,,Large,,5106255680,ODT Content designer,NW1 2AF,"1,988.06",
MHCLG,PINS,17/01/2020,Specialist Technical Support,Research and Development,HAYS SPECIALIST RECRUITMENT LTD,,Large,,5106255684,ODT Business Analyst - SH,NW1 2AF,"3,132.00",
MHCLG,PINS,17/01/2020,Specialist Technical Support,Research and Development,HAYS SPECIALIST RECRUITMENT LTD,,Large,,5106255686,ODT PMO Lead,NW1 2AF,"2,256.72",
MHCLG,PINS,17/01/2020,Specialist Technical Support,Corporate Services Director,HAYS SPECIALIST RECRUITMENT LTD,,Large,,5106255688,GDPR Trainer,NW1 2AF,"2,832.00",
MHCLG,PINS,17/01/2020,Specialist Technical Support,Research and Development,HAYS SPECIALIST RECRUITMENT LTD,,Large,,5106255690,ODT User Researcher,NW1 2AF,"2,737.49",
MHCLG,PINS,17/01/2020,Specialist Technical Support,Research and Development,HAYS SPECIALIST RECRUITMENT LTD,,Large,,5106255691,ODT Business Analyst - JB,NW1 2AF,"3,130.20",
MHCLG,PINS,17/01/2020,Specialist Technical Support,Research and Development,HAYS SPECIALIST RECRUITMENT LTD,,Large,,5106255694,ODT Interactive Designer,NW1 2AF,"2,737.49",
MHCLG,PINS,17/01/2020,Specialist Technical Support,Research and Development,HAYS SPECIALIST RECRUITMENT LTD,,Large,,5106255699,ODT Scrum Master,NW1 2AF,"3,545.82",
MHCLG,PINS,17/01/2020,Specialist Technical Support,"Finance, Commercial & Business Support",HAYS SPECIALIST RECRUITMENT LTD,,Large,,5106255762,Commercial Manager NG,NW1 2AF,"2,443.32",
MHCLG,PINS,17/01/2020,Specialist Technical Support,Corporate Services Director,HAYS SPECIALIST RECRUITMENT LTD,,Large,,5106255763,Data Protection Liaison Officer,NW1 2AF,"3,580.50",
MHCLG,PINS,17/01/2020,Specialist Technical Support,Corporate Services Director,METHODS BUSINESS AND DIGITAL TECH,,Medium,,5106255247,DCS Business Analyst,EC1N 8TS,"11,730.00",
MHCLG,PINS,17/01/2020,Specialist Technical Support,Research and Development,OFSTED,,Data Not Provided,,5106255775,Business Change and PMO,M1 2WD,"52,415.89",
MHCLG,PINS,17/01/2020,Specialist Technical Support,Research and Development,SOLOS CONSULTANTS LTD,,Large,,5106255696,ODT Business Analyst,NG16 1LA,"1,211.83",
MHCLG,PINS,17/01/2020,Technical Aids for the disabled,Human Resources,HEALTH  MANAGEMENT LTD,,Medium,,2100080082,Health Managemtn 2018/19,BN8 5NN,"-3,067.45",
MHCLG,PINS,17/01/2020,Technical Aids for the disabled,Human Resources,HEALTH  MANAGEMENT LTD,,Medium,,5106255679,Health Managemtn 2018/19,BN8 5NN,"3,067.45",
MHCLG,PINS,20/01/2020,Agency Staff,"Policy, Knowledge & Quality",REED SPECIALIST RECRUITMENT LTD,,Large,,2100080143,Agency Staff for Library,SW20 0BA,-604.73,
MHCLG,PINS,20/01/2020,Agency Staff,Transformation Prog Management Office,REED SPECIALIST RECRUITMENT LTD,,Large,,5106255585,Finance Business Partner,SW20 0BA,956.39,
MHCLG,PINS,20/01/2020,Agency Staff,"Policy, Knowledge & Quality",REED SPECIALIST RECRUITMENT LTD,,Large,,5106255824,Agency Staff for Library,SW20 0BA,604.73,
MHCLG,PINS,20/01/2020,EXP – PURCHASE OF GOODS /SERVICES R & D,Research and Development,GOPRO CONSULTING LTD,,Small,,5106255780,Beta Sprints T&S,WC1N 2EB,"1,015.00",
MHCLG,PINS,20/01/2020,EXP – PURCHASE OF GOODS /SERVICES R & D,Research and Development,GOPRO CONSULTING LTD,,Small,,5106255780,V7 - Beta Sprints 15-20,WC1N 2EB,"102,621.30",
MHCLG,PINS,20/01/2020,EXP – PURCHASE OF GOODS /SERVICES R & D,Research and Development,HAYS SPECIALIST RECRUITMENT LTD,,Large,,5106255795,Test Analyst ODT,NW1 2AF,"1,457.10",
MHCLG,PINS,20/01/2020,EXP – PURCHASE OF GOODS /SERVICES R & D,Research and Development,METHODS BUSINESS AND DIGITAL TECH,,Medium,,5106255781,Contract Extension,EC1N 8TS,"14,250.00",
MHCLG,PINS,20/01/2020,Legal Fees,"Policy, Knowledge & Quality",MHCLG,,Public Bodies,,5106255787,Legal Advisory Service 2019/2020,HP2 4XN,"146,537.00",
MHCLG,PINS,20/01/2020,Software Licences,TR Transformation,GOPRO CONSULTING LTD,,Small,,5106255780,V4 - Hosting Yr1,WC1N 2EB,"2,947.00",
MHCLG,PINS,20/01/2020,Specialist Technical Support,Research and Development,HAYS SPECIALIST RECRUITMENT LTD,,Large,,5106255778,ODT Content designer,NW1 2AF,"2,485.08",
MHCLG,PINS,20/01/2020,Specialist Technical Support,ICT Digital Services,HAYS SPECIALIST RECRUITMENT LTD,,Large,,5106255791,Security Manager Backfill,NW1 2AF,"2,940.78",
MHCLG,PINS,20/01/2020,Specialist Technical Support,ICT Digital Services,HAYS SPECIALIST RECRUITMENT LTD,,Large,,5106255794,PHP developer for NI website,NW1 2AF,"3,121.86",
MHCLG,PINS,20/01/2020,Specialist Technical Support,Data and Performance,HAYS SPECIALIST RECRUITMENT LTD,,Large,,5106254537,Senior records manager,NW1 2AF,"3,132.00",
MHCLG,PINS,20/01/2020,Specialist Technical Support,Data and Performance,HAYS SPECIALIST RECRUITMENT LTD,,Large,,5106255030,Senior records manager,NW1 2AF,"3,132.00",
MHCLG,PINS,20/01/2020,Specialist Technical Support,Data and Performance,HAYS SPECIALIST RECRUITMENT LTD,,Large,,5106255031,Senior records manager,NW1 2AF,"1,252.80",
MHCLG,PINS,20/01/2020,Specialist Technical Support,Data and Performance,HAYS SPECIALIST RECRUITMENT LTD,,Large,,5106255213,Senior records manager,NW1 2AF,"1,252.80",
MHCLG,PINS,20/01/2020,Specialist Technical Support,Data and Performance,HAYS SPECIALIST RECRUITMENT LTD,,Large,,5106255350,Senior records manager,NW1 2AF,"1,252.80",
MHCLG,PINS,20/01/2020,Specialist Technical Support,Research and Development,HAYS SPECIALIST RECRUITMENT LTD,,Large,,5106255682,Test Analyst - JA,NW1 2AF,"2,712.90",
MHCLG,PINS,20/01/2020,Specialist Technical Support,Research and Development,HAYS SPECIALIST RECRUITMENT LTD,,Large,,5106255693,ODT Test Analyst - VV,NW1 2AF,"2,712.90",
MHCLG,PINS,20/01/2020,Specialist Technical Support,Research and Development,REED SPECIALIST RECRUITMENT LTD,,Large,,5106255779,ODT Project Support Ext-SY,SW20 0BA,453.12,
MHCLG,PINS,20/01/2020,Training,Human Resources,KPMG LLP (CSL),,Large,,5106255647,3 New Managers Programme (AA-Grd6),E14 5GL,"15,350.00",
MHCLG,PINS,21/01/2020,Agency Staff,Human Resources,HAYS SPECIALIST RECRUITMENT LTD,,Large,,5106255816,Admin OD/HR Support - HH,NW1 2AF,"1,196.34",
MHCLG,PINS,21/01/2020,Agency Staff,Governance & Strategic Support,REED SPECIALIST RECRUITMENT LTD,,Large,,5106255822,AO PA Resource KL,SW20 0BA,286.66,
MHCLG,PINS,21/01/2020,Agency Staff,"Finance, Commercial & Business Support",REED SPECIALIST RECRUITMENT LTD,,Large,,5106255823,AA Storekeeper,SW20 0BA,549.23,
MHCLG,PINS,21/01/2020,EXP – PURCHASE OF GOODS /SERVICES R & D,Research and Development,REED SPECIALIST RECRUITMENT LTD,,Large,,5106255826,EO ODT Project Support,SW20 0BA,942.48,
MHCLG,PINS,21/01/2020,Legal Fees,Wales Director,GOVERNMENT LEGAL DEPT,,Public Bodies,,5106255835,Legal Costs 2019,WC2B 4TS,"2,749.56",
MHCLG,PINS,21/01/2020,NSI Fees & Expenses,NSI Fees Planning,MR D HAINSWORTH,,Data Not Provided,,5106255827,NSI Fees,S60 3EE,"2,310.00",
MHCLG,PINS,21/01/2020,NSI Fees & Expenses,NSI Expenses Planning,MR D HAINSWORTH,,Data Not Provided,,5106255827,NSI Expenses,S60 3EE,164.41,
MHCLG,PINS,21/01/2020,Office Supplies,Business Support,BANNER BUSINESS SUPPLIES LTD,,Large,,5106255846,office stationery 19/20,S9 1XU,347.36,
MHCLG,PINS,21/01/2020,Specialist Technical Support,Data and Performance,HAYS SPECIALIST RECRUITMENT LTD,,Large,,5106255687,Senior records manager,NW1 2AF,"3,132.00",
MHCLG,PINS,21/01/2020,Specialist Technical Support,"Finance, Commercial & Business Support",METHODS BUSINESS AND DIGITAL TECH,,Medium,,5106254915,WELSH PINS SCOPING LEAD,EC1N 8TS,"7,200.00",
MHCLG,PINS,21/01/2020,Specialist Technical Support,"Finance, Commercial & Business Support",METHODS BUSINESS AND DIGITAL TECH,,Medium,,5106255777,WELSH PINS SCOPING LEAD,EC1N 8TS,"12,240.00",
MHCLG,PINS,21/01/2020,Specialist Technical Support,Research and Development,REED SPECIALIST RECRUITMENT LTD,,Large,,5106255825,ODT Project Support Ext-SY,SW20 0BA,568.32,
MHCLG,PINS,22/01/2020,Agency Staff,"Policy, Knowledge & Quality",REED SPECIALIST RECRUITMENT LTD,,Large,,5106255859,Agency Staff for Library 19-20,SW20 0BA,604.73,
MHCLG,PINS,22/01/2020,Office machinery consumables,Business Support,X M A LIMITED,,Data Not Provided,,5106255857,Office machine consumables 19/20,NG11 7EP,"3,905.76",
MHCLG,PINS,22/01/2020,Specialist Technical Support,ICT Digital Services,REED SPECIALIST RECRUITMENT LTD,,Large,,5106255830,Contract ext EM,SW20 0BA,"1,012.06",
MHCLG,PINS,23/01/2020,Agency Staff,Transformation Prog Management Office,HAYS SPECIALIST RECRUITMENT LTD,,Large,,5106255858,Change Portfolio Comms Lead,NW1 2AF,"2,088.00",
MHCLG,PINS,23/01/2020,Agency Staff,Inspector Development & Support Team,REED SPECIALIST RECRUITMENT LTD,,Large,,5106255818,AO IDST (HD),SW20 0BA,719.52,
MHCLG,PINS,23/01/2020,Agency Staff,Inspector Development & Support Team,REED SPECIALIST RECRUITMENT LTD,,Large,,5106255820,Agency EO IDST,SW20 0BA,812.96,
MHCLG,PINS,23/01/2020,Agency Staff,Professional Leads,REED SPECIALIST RECRUITMENT LTD,,Large,,5106255821,PA Resource,SW20 0BA,835.20,
MHCLG,PINS,23/01/2020,Agency Staff,Inspector Development & Support Team,REED SPECIALIST RECRUITMENT LTD,,Large,,5106255912,Temp staff for IDST-SC,SW20 0BA,536.93,
MHCLG,PINS,23/01/2020,NSI Fees & Expenses,NSI Fees Planning,SANDRA PRAIL LTD,,Micro,,5106255883,NSI Fees,BN16 1RX,"1,620.00",
MHCLG,PINS,23/01/2020,NSI Fees & Expenses,NSI Expenses Planning,SANDRA PRAIL LTD,,Micro,,5106255883,NSI Expenses,BN16 1RX,130.26,
MHCLG,PINS,23/01/2020,Specialist Technical Support,Research and Development,HAYS SPECIALIST RECRUITMENT LTD,,Large,,5106255890,ODT User Researcher,NW1 2AF,"3,421.86",
MHCLG,PINS,24/01/2020,Agency Staff,Human Resources,HAYS SPECIALIST RECRUITMENT LTD,,Large,,5106255948,Admin OD/HR Support - LJ,NW1 2AF,"1,196.34",
MHCLG,PINS,24/01/2020,"IT - PC, Network & Hardware",ICT Digital Services,X M A LIMITED,,Data Not Provided,,5106255937,Surface hub + roam stand,NG11 7EP,"9,220.20",
MHCLG,PINS,24/01/2020,Specialist Technical Support,Research and Development,HAYS SPECIALIST RECRUITMENT LTD,,Large,,5106255928,ODT PMO Lead,NW1 2AF,"2,256.72",
MHCLG,PINS,24/01/2020,Specialist Technical Support,Research and Development,HAYS SPECIALIST RECRUITMENT LTD,,Large,,5106255930,ODT Scrum Master,NW1 2AF,"3,545.82",
MHCLG,PINS,24/01/2020,Specialist Technical Support,Corporate Services Director,HAYS SPECIALIST RECRUITMENT LTD,,Large,,5106255934,GDPR Trainer,NW1 2AF,"2,832.00",
MHCLG,PINS,24/01/2020,Specialist Technical Support,Research and Development,HAYS SPECIALIST RECRUITMENT LTD,,Large,,5106255935,ODT Interactive Designer,NW1 2AF,"2,053.12",
MHCLG,PINS,24/01/2020,Specialist Technical Support,Research and Development,HAYS SPECIALIST RECRUITMENT LTD,,Large,,5106255939,ODT Content designer,NW1 2AF,"2,485.08",
MHCLG,PINS,24/01/2020,Specialist Technical Support,ICT Digital Services,HAYS SPECIALIST RECRUITMENT LTD,,Large,,5106255947,PHP developer for NI website,NW1 2AF,"3,121.86",
MHCLG,PINS,24/01/2020,Specialist Technical Support,Research and Development,HAYS SPECIALIST RECRUITMENT LTD,,Large,,5106255925,ODT Test Analyst - VV,NW1 2AF,"2,712.90",
MHCLG,PINS,24/01/2020,Specialist Technical Support,Corporate Services Director,HAYS SPECIALIST RECRUITMENT LTD,,Large,,5106255926,Data Protection Liaison Officer,NW1 2AF,"3,580.50",
MHCLG,PINS,24/01/2020,Specialist Technical Support,Research and Development,HAYS SPECIALIST RECRUITMENT LTD,,Large,,5106255931,Test Analyst - JA,NW1 2AF,"2,712.90",
MHCLG,PINS,27/01/2020,Agency Staff,Human Resources,HAYS SPECIALIST RECRUITMENT LTD,,Large,,5106256020,HR ADMIN AO - LR,NW1 2AF,332.55,
MHCLG,PINS,27/01/2020,Agency Staff,"Policy, Knowledge & Quality",REED SPECIALIST RECRUITMENT LTD,,Large,,2100080457,Agency Staff for Library,SW20 0BA,-572.04,
MHCLG,PINS,27/01/2020,Agency Staff,Transformation Prog Management Office,REED SPECIALIST RECRUITMENT LTD,,Large,,5106256054,Finance Business Partner,SW20 0BA,"1,415.05",
MHCLG,PINS,27/01/2020,Agency Staff,"Policy, Knowledge & Quality",REED SPECIALIST RECRUITMENT LTD,,Large,,5106256064,Agency Staff for Library,SW20 0BA,572.04,
MHCLG,PINS,27/01/2020,EXP – PURCHASE OF GOODS /SERVICES R & D,Research and Development,HAYS SPECIALIST RECRUITMENT LTD,,Large,,5106256026,Test Analyst ODT,NW1 2AF,"1,457.10",
MHCLG,PINS,27/01/2020,EXP – PURCHASE OF GOODS /SERVICES R & D,Research and Development,HAYS SPECIALIST RECRUITMENT LTD,,Large,,5106256029,Test Analyst ODT,NW1 2AF,"2,095.70",
MHCLG,PINS,27/01/2020,EXP – PURCHASE OF GOODS /SERVICES R & D,Research and Development,HAYS SPECIALIST RECRUITMENT LTD,,Large,,5106256031,ODT Business Analyst - SH,NW1 2AF,"2,610.00",
MHCLG,PINS,27/01/2020,NSI Fees & Expenses,NSI Fees Planning,JS CONSERVATION MANAGEMENT &,,Small,,5106256055,NSI Fees,LS27 0BD,"2,040.00",
MHCLG,PINS,27/01/2020,NSI Fees & Expenses,NSI Expenses Planning,JS CONSERVATION MANAGEMENT &,,Small,,5106256055,NSI Expenses,LS27 0BD,56.95,
MHCLG,PINS,27/01/2020,Specialist Technical Support,ICT Digital Services,HAYS SPECIALIST RECRUITMENT LTD,,Large,,5106256022,Security Manager Backfill,NW1 2AF,"2,646.71",
MHCLG,PINS,27/01/2020,Specialist Technical Support,ICT Digital Services,HAYS SPECIALIST RECRUITMENT LTD,,Large,,5106256053,O365 Tech Specialist NW,NW1 2AF,"2,352.62",
MHCLG,PINS,27/01/2020,Specialist Technical Support,Performance Recovery,HAYS SPECIALIST RECRUITMENT LTD,,Large,,5106255817,BI Developer,NW1 2AF,"2,830.32",
MHCLG,PINS,27/01/2020,Specialist Technical Support,Data and Performance,HAYS SPECIALIST RECRUITMENT LTD,,Large,,5106255927,Senior records manager,NW1 2AF,"3,132.00",
MHCLG,PINS,27/01/2020,Specialist Technical Support,Performance Recovery,HAYS SPECIALIST RECRUITMENT LTD,,Large,,5106255929,BI Developer ,NW1 2AF,"2,830.32",
MHCLG,PINS,27/01/2020,Specialist Technical Support,Performance Recovery,METHODS BUSINESS AND DIGITAL TECH,,Medium,,5106255345,Product Analyst Resource,EC1N 8TS,"13,760.40",
MHCLG,PINS,27/01/2020,Specialist Technical Support,Research and Development,SOLOS CONSULTANTS LTD,,Large,,5106256042,ODT Business Analyst,NG16 1LA,"3,029.58",
MHCLG,PINS,27/01/2020,Translations,Wales Director,TROSOL CYFYNGEDIG,,Small,,5106256052,Pins Wales translation costs extension,CF14 5GH,"2,272.86",
MHCLG,PINS,28/01/2020,Agency Staff,Transformation Prog Management Office,REED SPECIALIST RECRUITMENT LTD,,Large,,5106256060,Finance Business Partner,SW20 0BA,"1,444.33",
MHCLG,PINS,28/01/2020,Agency Staff,"Finance, Commercial & Business Support",REED SPECIALIST RECRUITMENT LTD,,Large,,5106256061,AA Storekeeper Ext,SW20 0BA,549.23,
MHCLG,PINS,28/01/2020,EXP – PURCHASE OF GOODS /SERVICES R & D,Research and Development,REED SPECIALIST RECRUITMENT LTD,,Large,,5106256062,EO ODT Project Support,SW20 0BA,942.48,
MHCLG,PINS,28/01/2020,EXP – PURCHASE OF GOODS /SERVICES R & D,Research and Development,REED SPECIALIST RECRUITMENT LTD,,Large,,5106256066,ODT Project Support - SY,SW20 0BA,473.60,
MHCLG,PINS,28/01/2020,NSI Fees & Expenses,NSI Fees Planning,MARTIN ANDREWS PLANNING CONSULTANCY,,Micro,,5106256091,NSI Fees,BH15 1HH,"1,680.00",
MHCLG,PINS,28/01/2020,NSI Fees & Expenses,NSI Expenses Planning,MARTIN ANDREWS PLANNING CONSULTANCY,,Micro,,5106256091,NSI Expenses,BH15 1HH,81.18,
MHCLG,PINS,28/01/2020,Specialist Technical Support,ICT Digital Services,HAYS SPECIALIST RECRUITMENT LTD,,Large,,5106256082,O365 Tech Specialist NW,NW1 2AF,"1,764.47",
MHCLG,PINS,28/01/2020,Specialist Technical Support,ICT Digital Services,REED SPECIALIST RECRUITMENT LTD,,Large,,5106256059,Contract Extension  EM,SW20 0BA,607.24,
MHCLG,PINS,29/01/2020,Agency Staff,Governance & Strategic Support,REED SPECIALIST RECRUITMENT LTD,,Large,,5106256063,AO PA Resource KL - Contract Ext,SW20 0BA,268.74,
MHCLG,PINS,29/01/2020,Agency Staff,"Policy, Knowledge & Quality",REED SPECIALIST RECRUITMENT LTD,,Large,,5106256107,Agency Staff for Library 19-20,SW20 0BA,572.04,
MHCLG,PINS,29/01/2020,Courier Services,Finance accounting adjustments,PARCELFORCE WORLDWIDE,,Large,,5106256122,Courier Service Ext 2020,MK7 8LE,"4,444.97",
MHCLG,PINS,29/01/2020,Courier Services,Estates,ROYAL MAIL,,Large,,5106256094,Postal services VAT 19/20,S49 1HQ,"1,333.04",
MHCLG,PINS,29/01/2020,IT - Service Contracts,ICT Digital Services,MHCLG,,Public Bodies,,5106256099,Fujitsu services ,HP2 4XN,"183,708.30",
MHCLG,PINS,29/01/2020,IT - Service Contracts,Performance Recovery,MHCLG,,Public Bodies,,5106256111,48VDC ethernet power adaptors ,HP2 4XN,"1,852.00",
MHCLG,PINS,29/01/2020,IT - Service Contracts,Performance Recovery,MHCLG,,Public Bodies,,5106256111,Power cord UK plug,HP2 4XN,565.04,
MHCLG,PINS,29/01/2020,Legal Fees,"Policy, Knowledge & Quality",GOVERNMENT LEGAL DEPT,,Public Bodies,,5106256104,Disbursements,WC2B 4TS,"26,413.06",
MHCLG,PINS,29/01/2020,Legal Fees,"Policy, Knowledge & Quality",GOVERNMENT LEGAL DEPT,,Public Bodies,,5106256104,Fees and Charges,WC2B 4TS,"67,321.17",
MHCLG,PINS,29/01/2020,Software Licences,Performance Recovery,MHCLG,,Public Bodies,,5106256106,MS O365 licences,HP2 4XN,"30,470.00",
MHCLG,PINS,29/01/2020,Software Licences,ICT Digital Services,MHCLG,,Public Bodies,,5106256106,MS O365 licences 50,HP2 4XN,"15,235.00",
MHCLG,PINS,29/01/2020,Specialist Technical Support,TR Organisational Agility,HAYS SPECIALIST RECRUITMENT LTD,,Large,,5106256023,OD Implementation Project Lead,NW1 2AF,"2,457.79",
MHCLG,PINS,30/01/2020,Legal Fees,"Policy, Knowledge & Quality",GOVERNMENT LEGAL DEPT,,Public Bodies,,5106256203,Fees and Charges ,WC2B 4TS,"-27,534.75",
MHCLG,PINS,30/01/2020,Legal Fees,"Policy, Knowledge & Quality",GOVERNMENT LEGAL DEPT,,Public Bodies,,5106256204,Disbursements,WC2B 4TS,"27,534.75",
MHCLG,PINS,30/01/2020,NSI Fees & Expenses,NSI Fees Planning,SANDRA PRAIL LTD,,Micro,,5106256173,NSI Fees,BN16 1RX,"1,638.00",
MHCLG,PINS,30/01/2020,NSI Fees & Expenses,NSI Expenses Planning,SANDRA PRAIL LTD,,Micro,,5106256173,NSI Expenses,BN16 1RX,88.44,
MHCLG,PINS,30/01/2020,Payroll Services,Human Resources,CGI IT UK LIMITED,,Large,,5106256148,Payroll Services 2019/20,CF31 9AP,"4,325.10",
MHCLG,PINS,30/01/2020,Specialist Technical Support,"Finance, Commercial & Business Support",HAYS SPECIALIST RECRUITMENT LTD,,Large,,5106256174,Commercial Manager NG,NW1 2AF,"2,443.32",
MHCLG,PINS,30/01/2020,Training,Infrastructure Planning,ELLIOTT TRAINING LTD,,Micro,,5106256145,"Word Intro, Intermediate and Advanced",GL2 8FE,700.00,
MHCLG,PINS,30/01/2020,Training,Infrastructure Planning,ELLIOTT TRAINING LTD,,Micro,,5106256169,"Word Intro, Intermediate and Advanced",GL2 8FE,"2,070.00",
MHCLG,PINS,30/01/2020,Training,TR People,HOWARD DAVIS CONSULTANCY LTD,,Micro,,5106256139,Executive Coaching - SR,GL20 7SL,"1,050.00",
MHCLG,PINS,30/01/2020,Training,ICT Digital Services,MHCLG,,Public Bodies,,2100080618,ITMP training costs recharge to PINS,HP2 4XN,"-88,230.00",
MHCLG,PINS,30/01/2020,Training,ICT Digital Services,MHCLG,,Public Bodies,,2100080624,ITMP training costs recharge to PINS,HP2 4XN,"-45,705.00",
MHCLG,PINS,30/01/2020,Training,ICT Digital Services,MHCLG,,Public Bodies,,5106256118,ITMP training costs recharge to PINS,HP2 4XN,"88,230.00",
MHCLG,PINS,30/01/2020,Training,ICT Digital Services,MHCLG,,Public Bodies,,5106256178,ITMP training costs recharge to PINS,HP2 4XN,"45,705.00",
MHCLG,PINS,31/01/2020,Agency Staff,Transformation Prog Management Office,HAYS SPECIALIST RECRUITMENT LTD,,Large,,5106256140,Change Portfolio Comms Lead,NW1 2AF,"2,088.00",
MHCLG,PINS,31/01/2020,Courier Services,Estates,ROYAL MAIL,,Large,,5106256130,Postal services VAT 19/20,S49 1HQ,"2,183.23",
MHCLG,PINS,31/01/2020,Courier Services,Estates,ROYAL MAIL,,Large,,5106256130,Postal services VAT exempt 19/20,S49 1HQ,5.00,
MHCLG,PINS,31/01/2020,Courier Services,Estates,ROYAL MAIL,,Large,,5106256130,Postal services VAT zero 19/20,S49 1HQ,6.25,
MHCLG,PINS,31/01/2020,EXP – PURCHASE OF GOODS /SERVICES R & D,Research and Development,HAYS SPECIALIST RECRUITMENT LTD,,Large,,5106256197,ODT PMO Lead,NW1 2AF,"1,880.60",
MHCLG,PINS,31/01/2020,EXP – PURCHASE OF GOODS /SERVICES R & D,Research and Development,HAYS SPECIALIST RECRUITMENT LTD,,Large,,5106256190,ODT Test Analyst - VV,NW1 2AF,"2,260.75",
MHCLG,PINS,31/01/2020,Legal Fees,Wales Director,GOVERNMENT LEGAL DEPARTMENT,,Public Bodies,,5106256183,Legal Costs,WC2B 4TS,"3,248.60",
MHCLG,PINS,31/01/2020,Mobile phone costs,ICT Digital Services,DAISY COMMUNICATIONS LIMITED,,Large,,5106256180,Mobile voice & data services,BB9 5SR,871.15,
MHCLG,PINS,31/01/2020,NSI Fees & Expenses,NSI Fees Planning,ANDREW DALE,,Data Not Provided,,5106256202,NSI Fees,DE23 8DP,"1,475.00",
MHCLG,PINS,31/01/2020,NSI Fees & Expenses,NSI Expenses Planning,ANDREW DALE,,Data Not Provided,,5106256202,NSI Expenses,DE23 8DP,261.35,
MHCLG,PINS,31/01/2020,Specialist Technical Support,Research and Development,HAYS SPECIALIST RECRUITMENT LTD,,Large,,5106256200,ODT User Researcher,NW1 2AF,"3,421.86",
MHCLG,PINS,31/01/2020,Specialist Technical Support,Corporate Services Director,METHODS BUSINESS AND DIGITAL TECH,,Medium,,5106256227,Contract extension,EC1N 8TS,"12,930.00",
MHCLG,PINS,31/01/2020,Specialist Technical Support,Research and Development,SOLOS CONSULTANTS LTD,,Large,,5106256198,ODT Business Analyst,NG16 1LA,"3,029.58",
MHCLG,PINS,31/01/2020,Training,TR People,KORN FERRY (UK) LTD,,Large,,5106256182,ET & GRd 6 dev & coaching ,SW1Y 6QB,"7,312.66",
MHCLG,PINS,31/01/2020,Training,ICT Digital Services,MHCLG,,Public Bodies,,5106256229,ITMP training costs recharge to PINS,HP2 4XN,"88,230.00",
MHCLG,PINS,31/01/2020,Vehicle hire,Business Support,ENTERPRISE RENT A CAR,,Large,,5106256194,Vehicle Hire Damage Claim,SO23 0LD,737.20,
